fUSD/lending_fUSD_20250618
["ID","MTS","AMOUNT","RATE_DAILY","PERIOD"]
[366416675,1750237853593,-490.0,0.00016602,2]
[366416676,1750237853602,-1334.0,0.00016602,2]
[366416677,1750237853612,-490.0,0.00016602,2]
[366416678,1750237853621,-589.03,0.00016602,2]
[366416679,1750237853631,-752.22,0.00016602,2]
[366416680,1750237853640,-920.5,0.00016602,2]
[366416681,1750237853650,-490.0,0.00016602,2]
[366416682,1750237853659,-100.66169644,0.00016602,2]
[366416683,1750237853671,-477.5,0.00016602,2]
[366416684,1750237853683,-7.79830356,0.00016602,2]
[366416685,1750237853692,-514.70169644,0.00016602,2]
[366416686,1750237853714,-362.21830356,0.00016602,2]
[366416687,1750237853724,-313.29459327,0.00016602,2]
[366416688,1750237853733,-649.44320929,0.00016602,2]
[366416689,1750237854407,-280.45,0.00016602,2]
[366416690,1750237854419,-414.26679071,0.00016602,2]
[366416691,1750237854429,-490.0,0.00016602,2]
[366416692,1750237854439,-636.97656768,0.00016602,2]
[366416693,1750237854451,-248.56343232,0.00016602,2]
[366416694,1750237854461,-2018.39,0.00016602,2]
[366416695,1750237854470,-24.05631111,0.00016602,2]
[366416696,1750237854490,-170.87,0.00015878,2]
[366416697,1750237854500,-1270.18368889,0.00016602,2]
[366416698,1750237854510,-296.57075377,0.00016602,2]
[366416699,1750237854519,-577.63,0.00016602,2]
[366416700,1750237854529,-632.8,0.00016602,2]
[366416701,1750237854538,-819.96,0.00016602,2]
[366416702,1750237854547,-490.0,0.00016602,2]
[366416703,1750237854557,-1140.32,0.00016602,2]
[366416704,1750237854567,-490.0,0.00016602,2]
[366416705,1750237854577,-490.0,0.00016602,2]
[366416706,1750237854587,-490.0,0.00016602,2]
[366416707,1750237854597,-490.0,0.00016602,2]
[366416708,1750237854607,-1163.61,0.00016602,2]
[366416709,1750237854616,-490.0,0.00016602,2]
[366416710,1750237854626,-490.0,0.00016602,2]
[366416711,1750237854636,-490.82415984,0.00016602,2]
[366416712,1750237854645,-1226.37,0.00016602,2]
[366416713,1750237854654,-490.0,0.00016602,2]
[366416714,1750237854664,-490.0,0.00016602,2]
[366416715,1750237854673,-789.82,0.00016602,2]
[366416716,1750237854683,-642.38,0.00016602,2]
[366416717,1750237854692,-592.7,0.00016602,2]
[366416718,1750237854701,-490.0,0.00016602,2]
[366416719,1750237854711,-569.62,0.00016602,2]
[366416720,1750237854720,-625.6,0.00016602,2]
[366416721,1750237854730,-1207.33,0.00016602,2]
[366416722,1750237854739,-697.39,0.00016602,2]
[366416723,1750237854749,-1292.5,0.00016602,2]
[366416724,1750237854758,-719.71,0.00016602,2]
[366416725,1750237854768,-185.577811,0.00016602,2]
[366416726,1750237854778,-578.09,0.00016602,2]
[366416727,1750237854788,-572.48,0.00016602,2]
[366416728,1750237854797,-518.21,0.00016602,2]
[366416729,1750237854807,-185.577811,0.00016602,2]
[366416730,1750237854816,-490.0,0.00016602,2]
[366416731,1750237854826,-986.32,0.00016602,2]
[366416732,1750237854835,-490.0,0.00016602,2]
[366416733,1750237854845,-490.0,0.00016602,2]
[366416734,1750237854854,-490.0,0.00016602,2]
[366416735,1750237854864,-490.0,0.00016602,2]
[366416736,1750237854874,-800.84,0.00016602,2]
[366416737,1750237854883,-1094.68,0.00016602,2]
[366416738,1750237854892,-490.0,0.00016602,2]
[366416739,1750237854902,-516.13,0.00016602,2]
[366416740,1750237854913,-1098.20877929,0.00016602,2]
[366416741,1750237854927,-155.04122071,0.00016602,2]
[366416742,1750237854937,-490.0,0.00016602,2]
[366416743,1750237854946,-0.71846845,0.00016602,2]
[366416744,1750237854958,-489.28153155,0.00016602,2]
[366416745,1750237854968,-151.0,0.00016602,2]
[366416746,1750237854977,-490.0,0.00016602,2]
[366416747,1750237854987,-490.0,0.00016602,2]
[366416748,1750237854997,-1004.758957,0.00016602,2]
[366416749,1750237855006,-500.52,0.00016602,2]
[366416750,1750237855016,-2060.6,0.00016602,2]
[366416751,1750237855026,-490.0,0.00016602,2]
[366416752,1750237855035,-490.0,0.00016602,2]
[366416753,1750237855045,-494.25,0.00016602,2]
[366416754,1750237855055,-490.0,0.00016602,2]
[366416755,1750237855064,-151.0,0.00016602,2]
[366416756,1750237855074,-701.04,0.00016602,2]
[366416757,1750237855083,-2157.97,0.00016602,2]
[366416758,1750237855093,-490.0,0.00016602,2]
[366416759,1750237855103,-636.12,0.00016602,2]
[366416760,1750237855112,-490.0,0.00016602,2]
[366416761,1750237855122,-490.0,0.00016602,2]
[366416762,1750237855131,-490.0,0.00016602,2]
[366416763,1750237855141,-1249.58,0.00016602,2]
[366416764,1750237855150,-151.0,0.00016602,2]
[366416765,1750237855160,-1049.31,0.00016602,2]
[366416766,1750237855169,-853.16,0.00016602,2]
[366416767,1750237855179,-596.28,0.00016602,2]
[366416768,1750237855188,-755.56,0.00016602,2]
[366416769,1750237855199,-490.0,0.00016602,2]
[366416770,1750237855208,-2089.19,0.00016602,2]
[366416771,1750237855217,-490.0,0.00016602,2]
[366416772,1750237855227,-490.0,0.00016602,2]
[366416773,1750237855238,-490.0,0.00016602,2]
[366416774,1750237855248,-490.0,0.00016602,2]
[366416775,1750237855257,-490.0,0.00016602,2]
[366416776,1750237855266,-759.24,0.00016602,2]
[366416777,1750237855277,-490.0,0.00016602,2]
[366416778,1750237855286,-990.25,0.00016602,2]
[366416779,1750237855295,-490.0,0.00016602,2]
[366416780,1750237855305,-490.0,0.00016602,2]
[366416781,1750237855314,-490.0,0.00016602,2]
[366416782,1750237855324,-490.0,0.00016602,2]
[366416783,1750237855333,-576.63712472,0.00016602,2]
[366416784,1750237855343,-850.67,0.00016602,2]
[366416785,1750237855352,-607.1,0.00016602,2]
[366416786,1750237855362,-2547.980076,0.00016602,2]
[366416787,1750237855371,-490.0,0.00016602,2]
[366416788,1750237855381,-790.16,0.00016602,2]
[366416789,1750237855391,-684.84,0.00016602,2]
[366416790,1750237855400,-607.32,0.00016602,2]
[366416791,1750237855410,-490.0,0.00016602,2]
[366416792,1750237855419,-490.0,0.00016602,2]
[366416793,1750237855428,-1386.51,0.00016602,2]
[366416794,1750237855439,-762.65,0.00016602,2]
[366416795,1750237855449,-490.0,0.00016602,2]
[366416796,1750237855458,-151.0,0.00016602,2]
[366416797,1750237855469,-490.0,0.00016602,2]
[366416798,1750237855479,-490.0,0.00016602,2]
[366416799,1750237855489,-559.76,0.00016602,2]
[366416800,1750237855499,-490.0,0.00016602,2]
[366416801,1750237855508,-1401.98,0.00016602,2]
[366416802,1750237855518,-203.034898,0.00016602,2]
[366416803,1750237855528,-1561.49,0.00016602,2]
[366416804,1750237855538,-490.0,0.00016602,2]
[366416805,1750237855548,-490.0,0.00016602,2]
[366416806,1750237855558,-490.0,0.00016602,2]
[366416807,1750237855567,-203.034898,0.00016602,2]
[366416808,1750237855577,-776.11,0.00016602,2]
[366416809,1750237855587,-490.0,0.00016602,2]
[366416810,1750237855596,-490.0,0.00016602,2]
[366416811,1750237855606,-885.33,0.00016602,2]
[366416812,1750237855616,-543.14,0.00016602,2]
[366416813,1750237855626,-490.0,0.00016602,2]
[366416814,1750237855636,-1889.81,0.00016602,2]
[366416815,1750237855649,-597.14,0.00016602,2]
[366416816,1750237855657,-490.0,0.00016602,2]
[366416817,1750237855667,-751.64,0.00016602,2]
[366416818,1750237855677,-490.0,0.00016602,2]
[366416819,1750237855686,-490.0,0.00016602,2]
[366416820,1750237855695,-490.0,0.00016602,2]
[366416821,1750237855704,-1575.13,0.00016602,2]
[366416822,1750237855714,-490.0,0.00016602,2]
[366416823,1750237855723,-490.0,0.00016602,2]
[366416824,1750237855733,-490.0,0.00016602,2]
[366416825,1750237855742,-1732.28,0.00016602,2]
[366416826,1750237855751,-677.87,0.00016602,2]
[366416827,1750237855760,-490.0,0.00016602,2]
[366416828,1750237855770,-490.0,0.00016602,2]
[366416829,1750237855779,-2856.95,0.00016602,2]
[366416830,1750237855788,-669.91,0.00016602,2]
[366416831,1750237855797,-490.0,0.00016602,2]
[366416832,1750237855807,-490.0,0.00016602,2]
[366416833,1750237855816,-682.4,0.00016602,2]
[366416834,1750237855825,-490.0,0.00016602,2]
[366416835,1750237855834,-490.0,0.00016602,2]
[366416836,1750237855844,-490.0,0.00016602,2]
[366416837,1750237855853,-490.0,0.00016602,2]
[366416838,1750237855862,-1287.88,0.00016602,2]
[366416839,1750237855871,-723.22,0.00016602,2]
[366416840,1750237855881,-490.0,0.00016602,2]
[366416841,1750237855891,-490.0,0.00016602,2]
[366416842,1750237855901,-490.0,0.00016602,2]
[366416843,1750237855911,-634.24,0.00016602,2]
[366416844,1750237855920,-490.0,0.00016602,2]
[366416845,1750237855930,-2063.76,0.00016602,2]
[366416846,1750237855940,-524.82,0.00016602,2]
[366416847,1750237855949,-665.03,0.00016602,2]
[366416848,1750237855959,-490.0,0.00016602,2]
[366416849,1750237855969,-490.0,0.00016602,2]
[366416850,1750237855979,-490.0,0.00016602,2]
[366416851,1750237855988,-490.0,0.00016602,2]
[366416852,1750237855998,-258.34150936,0.00016602,2]
[366416853,1750237856232,1120.0,0.0002465,120]
[366416854,1750237856461,1654.0,0.0002465,120]
[366416855,1750237856597,1742.0,0.0002465,120]
[366416856,1750237898005,157.47,0.00024658,120]
[366416857,1750237906645,191.0,0.0002465,120]
[366416858,1750237907425,1823.0,0.0002465,120]
[366416859,1750237908212,561.0,0.0002465,120]
[366416860,1750238030710,1662.0,0.0002465,120]
[366416861,1750238031528,407.0,0.0002465,120]
[366416862,1750238032337,679.0,0.0002465,120]
[366416863,1750238052640,205.0,0.00012602,2]
[366416864,1750238086226,525.0,0.0002465,120]
[366416865,1750238153002,858.83874387,0.0002465,120]
[366416868,1750238275755,2883.50564306,0.000246,120]
[366416870,1750238661039,1273.0,0.00024657,120]
[366416886,1750238771792,205.0,0.00012859,2]
[366416887,1750238810738,273.0,0.0002465,120]
[366416888,1750238811543,321.0,0.0002465,120]
[366416889,1750238812866,1216.0,0.0002465,120]
[366416899,1750238925601,1110.0,0.0002465,120]
[366416900,1750238926228,1721.0,0.0002465,120]
[366416901,1750238927022,1004.0,0.0002465,120]
[366416903,1750238964787,400.0,0.00024657,120]
[366416904,1750238990013,320.0,0.0002465,120]
[366416914,1750239031846,-151.23,0.00013699,2]
[366416916,1750239031856,-1000.0,0.00014683,2]
[366416919,1750239031867,-300.0,0.00014723,2]
[366416920,1750239031876,-51.1603051,0.00014723,2]
[366416921,1750239032029,-1148.8396949,0.00014723,2]
[366416922,1750239032040,-7456.10283414,0.00014724,2]
[366416923,1750239032105,-423.15716586,0.00014724,2]
[366416924,1750239032115,-150.0,0.00014856,2]
[366416925,1750239032125,-250.0,0.00014962,2]
[366416926,1750239032135,-225.65237963,0.00015015,2]
[366416927,1750239032152,-74.34762037,0.00015015,2]
[366416928,1750239032162,-150.0,0.00015016,2]
[366416929,1750239032172,-150.0,0.00015016,2]
[366416931,1750239032182,-150.44568056,0.00015016,2]
[366416933,1750239032192,-170.87,0.000151,2]
[366416935,1750239032201,-303.0,0.000151,2]
[366416937,1750239032211,-157.19,0.00015134,2]
[366416939,1750239032223,-157.19,0.00015138,2]
[366416941,1750239032232,-157.19,0.00015142,2]
[366416943,1750239032242,-157.19,0.00015146,2]
[366416945,1750239032254,-157.19,0.0001515,2]
[366416947,1750239032264,-157.19,0.00015154,2]
[366416949,1750239032273,-157.19,0.00015158,2]
[366416951,1750239032282,-157.19,0.00015162,2]
[366416953,1750239032291,-157.19,0.00015166,2]
[366416954,1750239032300,-157.19,0.0001517,2]
[366416955,1750239032309,-169.13,0.00015173,2]
[366416956,1750239032317,-157.19,0.00015174,2]
[366416957,1750239032326,-157.19,0.00015178,2]
[366416958,1750239032335,-157.19,0.00015182,2]
[366416959,1750239032345,-8.72615351,0.00015183,3]
[366416962,1750239037822,-143.27384649,0.00015183,3]
[366416963,1750239037831,-300.0,0.00015186,2]
[366416964,1750239037841,-157.19,0.00015186,2]
[366416965,1750239037851,-157.19,0.0001519,2]
[366416966,1750239037860,-157.19,0.00015194,2]
[366416967,1750239037870,-88.71089074,0.00015198,2]
[366416968,1750239037897,-68.47910926,0.00015198,2]
[366416969,1750239037910,-150.0,0.000152,2]
[366416970,1750239037920,-170.87,0.000152,2]
[366416971,1750239037930,-170.87,0.000152,2]
[366416972,1750239037944,-132.53089061,0.00015202,2]
[366416973,1750239037955,-24.65910939,0.00015202,2]
[366416974,1750239037965,-157.19,0.00015206,2]
[366416975,1750239037976,-157.19,0.0001521,2]
[366416976,1750239037985,-205.0,0.00015216,4]
[366416977,1750239037995,-166.49,0.00015243,2]
[366416978,1750239038005,-1451.47243061,0.00015273,2]
[366416979,1750239038017,-11205.45756939,0.00015273,2]
[366416980,1750239038027,-152.0,0.00015338,4]
[366416981,1750239038036,-192.12497409,0.000154,2]
[366416982,1750239038045,-218.68,0.00015463,2]
[366416983,1750239038054,-200.0,0.00015463,7]
[366416984,1750239038063,-1989.0,0.00015483,2]
[366416985,1750239038073,-152.0,0.00015492,5]
[366416986,1750239038082,-47443.07145652,0.00015502,2]
[366416987,1750239038101,-381.59225543,0.00015502,2]
[366417180,1750239040068,-5951.44692207,0.00015502,2]
[366417182,1750239040080,-1968.16858381,0.00015502,2]
[366417240,1750239042884,-1220.24911827,0.00015502,2]
[366417241,1750239043097,-275.51772713,0.00015502,2]
[366417242,1750239043153,-1827.96393677,0.00015502,2]
[366417244,1750239043163,-228.49753637,0.00015538,2]
[366417246,1750239043173,-273.76619063,0.00015539,2]
[366417248,1750239046173,-739.23380937,0.00015539,2]
[366417249,1750239046183,-276.0,0.00015615,2]
[366417250,1750239046193,-152.0,0.00015647,6]
[366417251,1750239046203,-947.0,0.00015691,2]
[366417252,1750239046213,-170.87,0.00015778,2]
[366417253,1750239046222,-150.0,0.00015778,2]
[366417254,1750239046235,-152.0,0.00015802,7]
[366417255,1750239046246,-150.0,0.00015853,2]
[366417256,1750239046255,-150.0,0.00015878,2]
[366417257,1750239046265,-655.17,0.00015878,2]
[366417258,1750239046275,-341.55,0.00015878,2]
[366417259,1750239046286,-170.87,0.00015878,2]
[366417260,1750239046295,-150.0,0.00015878,2]
[366417261,1750239046304,-150.0,0.00015878,2]
[366417262,1750239046314,-151.0,0.0001588,2]
[366417263,1750239046324,-500.0,0.0001588,2]
[366417264,1750239046333,-500.0,0.0001588,2]
[366417265,1750239046343,-500.0,0.0001588,2]
[366417266,1750239046353,-500.0,0.0001588,2]
[366417267,1750239046363,-500.0,0.0001588,2]
[366417268,1750239046373,-500.0,0.0001588,2]
[366417269,1750239046383,-500.0,0.0001588,2]
[366417270,1750239046391,-436.2986427,0.0001588,2]
[366417272,1750239046401,-500.0,0.0001588,2]
[366417274,1750239046410,-500.0,0.0001588,2]
[366417276,1750239046420,-500.0,0.0001588,2]
[366417278,1750239046429,-300.0,0.0001588,2]
[366417280,1750239046438,-500.0,0.0001588,2]
[366417282,1750239046447,-300.0,0.0001588,2]
[366417284,1750239046456,-500.0,0.0001588,2]
[366417285,1750239046466,-300.0,0.0001588,2]
[366417287,1750239046476,-300.0,0.0001588,2]
[366417289,1750239046486,-300.0,0.0001588,2]
[366417291,1750239046495,-300.0,0.0001588,2]
[366417292,1750239046506,-200.0,0.0001588,2]
[366417293,1750239046516,-207.4,0.0001588,2]
[366417294,1750239046525,-300.0,0.000159,5]
[366417295,1750239046535,-1467.64485587,0.000159,2]
[366417296,1750239046545,-152.0,0.00015956,8]
[366417297,1750239046555,-498.96,0.00015978,2]
[366417298,1750239046565,-150.0,0.00015978,2]
[366417299,1750239046575,-455.32,0.00015978,2]
[366417300,1750239046584,-170.87,0.00015978,2]
[366417301,1750239046594,-150.0,0.00015978,2]
[366417302,1750239046604,-8548.17234483,0.00016,2]
[366417303,1750239046633,-960.0,0.00016,2]
[366417304,1750239047434,313.0,0.0002465,120]
[366417305,1750239106205,1327.0,0.0002465,120]
[366417309,1750239715670,150.0,0.00024658,120]
[366417310,1750239833530,400.0,0.00024657,120]
[366417396,1750240240567,-205.0,0.00013573,2]
[366417397,1750240240577,-151.23,0.00013699,2]
[366417398,1750240240587,-168.3695,0.00014918,2]
[366417824,1750240512376,200.0,0.00012893,2]
[366417825,1750240572718,205.0,0.00012573,2]
[366417826,1750240788470,400.0,0.00024657,120]
[366417829,1750241089345,1003.08700173,0.000246,120]
[366417830,1750241149512,1874.0,0.00024658,120]
[366417839,1750241291712,205.0,0.00012944,2]
[366417840,1750241309191,1000.0,0.000211,90]
[366417841,1750241317932,1000.0,0.00024657,120]
[366417842,1750241329494,1000.0,0.00024657,120]
[366417843,1750241350248,1000.0,0.00024657,120]
[366417848,1750241372892,150.0,0.00013121,2]
[366417853,1750241432350,-151.82,0.00013699,2]
[366417854,1750241432361,-169.31432995,0.00013699,2]
[366417855,1750241432371,-300.0,0.00013909,2]
[366417856,1750241432381,-600.0,0.00014245,4]
[366417857,1750241432391,-1063.69458276,0.00014393,2]
[366417858,1750241432402,-934.02541724,0.00014393,2]
[366417859,1750241432457,-743.391542,0.00014393,2]
[366417860,1750241432466,-316.0,0.00014466,2]
[366417861,1750241432476,-277.63,0.00014617,2]
[366417862,1750241432486,-300.0,0.00014638,2]
[366417863,1750241432496,-1200.0,0.00014638,2]
[366417864,1750241432505,-46.78278059,0.00014639,2]
[366417865,1750241432517,-411.8444199,0.00014639,2]
[366417866,1750241432528,-469.93266838,0.00014639,2]
[366417867,1750241432540,-723.5382235,0.00014639,2]
[366417871,1750241432587,-528.73190763,0.00014639,2]
[366417873,1750241432596,-742.33959324,0.00014639,2]
[366417885,1750241438283,-419.229999,0.00014639,2]
[366417886,1750241438302,-638.2904631,0.00014639,2]
[366417887,1750241438383,-8690.13994466,0.00014639,2]
[366417888,1750241438393,-1000.0,0.00014699,2]
[366417889,1750241438405,-200.0,0.00014704,2]
[366417890,1750241438417,-3053.76706532,0.0001477,2]
[366417891,1750241438429,-3276.37197661,0.0001477,2]
[366417893,1750241438443,-669.86095807,0.0001477,2]
[366417894,1750241438452,-197.48904194,0.000148,2]
[366417959,1750241440370,-342.42280759,0.000148,2]
[366417960,1750241440478,-288.07999384,0.000148,2]
[366417961,1750241440533,-349.42815663,0.000148,2]
[366417962,1750241440544,-200.0,0.00014827,2]
[366417963,1750241440555,-173.79118614,0.00014878,2]
[366417964,1750241440567,-500.0,0.00014878,2]
[366417965,1750241440580,-1655.40881386,0.00014878,2]
[366417966,1750241440591,-350.0,0.00014903,2]
[366417967,1750241440602,-300.0,0.00014917,2]
[366417968,1750241440612,-243.94270231,0.00014918,2]
[366417969,1750241440622,-250.0,0.0001493,2]
[366417970,1750241440632,-600.0,0.0001493,4]
[366417971,1750241440642,-300.0,0.0001493,2]
[366417972,1750241440652,-250.0,0.0001493,2]
[366417973,1750241440662,-600.0,0.0001493,4]
[366417974,1750241440671,-150.0,0.00014943,2]
[366417975,1750241440682,-2307.95138175,0.00014944,2]
[366417976,1750241440769,-1282.0,0.00014944,2]
[366417977,1750241440798,-473.08861825,0.00014944,2]
[366417978,1750241440807,-2621.77855078,0.00014944,2]
[366417979,1750241440818,-524.15,0.00014944,2]
[366417980,1750241440828,-487.89012847,0.00014944,2]
[366417989,1750241443256,-11833.04422814,0.00014944,2]
[366417992,1750241443366,-5550.87484017,0.00014944,2]
[366417993,1750241443379,-6177.18706618,0.00014944,2]
[366417994,1750241443391,-2805.06518626,0.00014944,2]
[366417995,1750241443400,-150.58,0.00015027,2]
[366417996,1750241443410,-150.58,0.00015034,2]
[366417997,1750241443420,-150.58,0.0001504,2]
[366417998,1750241443429,-150.58,0.00015047,2]
[366417999,1750241443439,-150.58,0.00015054,2]
[366418000,1750241443449,-150.58,0.00015061,2]
[366418001,1750241443458,-150.58,0.00015068,2]
[366418002,1750241443470,-150.58,0.00015075,2]
[366418003,1750241443480,-709.66,0.00015078,2]
[366418004,1750241443490,-150.58,0.00015081,2]
[366418005,1750241443500,-150.58,0.00015088,2]
[366418006,1750241443509,-150.58,0.00015095,2]
[366418007,1750241443519,-150.58,0.00015102,2]
[366418008,1750241443529,-167.12,0.00015122,2]
[366418009,1750241443538,-152.0,0.00015206,3]
[366418010,1750241443548,-168.0,0.00015374,2]
[366418011,1750241443557,-152.0,0.00015383,4]
[366418012,1750241443566,-205.0,0.00015421,5]
[366418013,1750241443575,-168.0,0.00015437,2]
[366418014,1750241443585,-220.08,0.00015463,2]
[366418015,1750241443594,-138.66204482,0.00015463,2]
[366418016,1750241443605,-527.33795518,0.00015463,2]
[366418017,1750241443614,-416.98,0.00015463,2]
[366418018,1750241443624,-150.0,0.00015463,2]
[366418019,1750241443633,-165.09,0.00015463,2]
[366418020,1750241443644,-1191.95702822,0.00015463,2]
[366418021,1750241443656,-1205.49297178,0.00015463,2]
[366418023,1750241443665,-9486.0,0.00015463,2]
[366418024,1750241443675,-200.0,0.00015463,7]
[366418026,1750241443686,-200.0,0.00015463,2]
[366418028,1750241443696,-151.0,0.00015485,2]
[366418031,1750241443706,-322.9757762,0.00015485,2]
[366418032,1750241443715,-207.4,0.00015485,2]
[366418034,1750241443726,-168.0,0.00015528,2]
[366418036,1750241443735,-152.0,0.00015561,5]
[366418038,1750241443745,-168.0,0.0001558,2]
[366418040,1750241443755,-2041.13125202,0.00015613,2]
[366418046,1750241443775,-288.06874798,0.00015613,2]
[366418047,1750241443784,-168.0,0.00015692,2]
[366418050,1750241443794,-152.0,0.00015738,6]
[366418052,1750241443804,-70.92288102,0.00015763,2]
[366418054,1750241443816,-97.07711898,0.00015763,2]
[366418056,1750241443826,-418.13288102,0.0001577,2]
[366418059,1750241443850,-4252.41494104,0.0001577,2]
[366418062,1750241443862,-2329.45217794,0.0001577,2]
[366418064,1750241443871,-300.0,0.000158,5]
[366418066,1750241443881,-168.0,0.0001583,2]
[366418068,1750241443890,-168.0,0.00015841,2]
[366418070,1750241443899,-1173.0,0.00015843,2]
[366418072,1750241443909,-168.0,0.00015846,2]
[366418074,1750241443919,-261.0,0.000159,2]
[366418076,1750241443929,-600.0,0.000159,5]
[366418077,1750241443938,-301.04782206,0.000159,2]
[366418080,1750241443950,-1117.67553845,0.000159,2]
[366418082,1750241443961,-152.0,0.00015915,7]
[366418084,1750241443971,-2850.33664985,0.00016,2]
[366418086,1750241443983,-151.1,0.00016009,2]
[366418088,1750241443992,-420.0,0.00016026,2]
[366418090,1750241444002,-1418.72336044,0.00016038,2]
[366418092,1750241444012,-152.0,0.00016093,8]
[366418094,1750241444021,-1680.0,0.00016102,2]
[366418096,1750241444031,-461.73,0.00016137,2]
[366418098,1750241444040,-337.88,0.00016137,2]
[366418100,1750241444050,-461.73,0.00016137,2]
[366418102,1750241444059,-376.85,0.00016137,2]
[366418104,1750241444068,-1418.72336044,0.00016176,2]
[366418106,1750241444078,-4092.0,0.0001626,2]
[366418108,1750241444088,-7135.95,0.0001626,2]
[366418110,1750241444100,-205.711,0.0001626,2]
[366418112,1750241444113,-855.0,0.0001626,2]
[366418114,1750241444123,-898.021854,0.00016269,2]
[366418116,1750241444134,-152.0,0.0001627,9]
[366418118,1750241444144,-415.0,0.00016287,2]
[366418120,1750241444156,-415.0,0.00016291,2]
[366418122,1750241444166,-500.0,0.00016313,2]
[366418124,1750241444175,-415.0,0.00016313,2]
[366418126,1750241444185,-1418.72336044,0.00016314,2]
[366418128,1750241444195,-3252.97793206,0.00016337,2]
[366418130,1750241444205,-160.5617667,0.00016338,2]
[366418132,1750241444215,-212.32221169,0.00016338,2]
[366418134,1750241444224,-170.21092282,0.00016338,2]
[366418135,1750241444234,-152.35108738,0.00016338,2]
[366418137,1750241444244,-5000.0,0.00016338,2]
[366418139,1750241444254,-1000.0,0.00016338,2]
[366418141,1750241444263,-3252.97793199,0.0001641,2]
[366418143,1750241444274,-16682.6110048,0.00016435,2]
[366418145,1750241444286,-500.0,0.00016437,2]
[366418147,1750241444296,-500.0,0.00016437,2]
[366418149,1750241444306,-500.0,0.00016437,2]
[366418151,1750241444316,-500.0,0.00016437,2]
[366418153,1750241444327,-203.15652742,0.00016437,2]
[366418156,1750241444339,-441.5326185,0.00016437,2]
[366418158,1750241444349,-417.11256934,0.00016437,2]
[366418160,1750241444359,-1010.0,0.00016438,2]
[366418162,1750241444369,-154.217819,0.00016438,2]
[366418164,1750241444379,-151.0,0.00016438,2]
[366418165,1750241444389,-151.0,0.00016438,2]
[366418168,1750241444399,-151.0,0.00016438,2]
[366418170,1750241444409,-151.0,0.00016438,2]
[366418171,1750241444418,-161.986491,0.00016438,2]
[366418173,1750241444428,-151.0,0.00016438,2]
[366418175,1750241444438,-151.0,0.00016438,2]
[366418177,1750241444452,-151.0,0.00016438,2]
[366418178,1750241444468,-151.0,0.00016438,2]
[366418179,1750241444478,-277.183252,0.00016438,2]
[366418180,1750241444488,-151.0,0.00016438,2]
[366418181,1750241444497,-358.463999,0.00016438,2]
[366418182,1750241444507,-358.463999,0.00016438,2]
[366418183,1750241444517,-151.0,0.00016438,2]
[366418184,1750241444526,-151.0,0.00016438,2]
[366418185,1750241444536,-151.0,0.00016438,2]
[366418186,1750241444545,-151.0,0.00016438,2]
[366418187,1750241444555,-151.0,0.00016438,2]
[366418188,1750241444564,-151.0,0.00016438,2]
[366418189,1750241444574,-151.0,0.00016438,2]
[366418190,1750241444584,-151.0,0.00016438,2]
[366418191,1750241444593,-151.0,0.00016438,2]
[366418192,1750241444602,-253.200893,0.00016438,2]